bitfinex-derivatives/quotes_BTCF0:USTF0_20240929
["timestamp","ask_amount","ask_price","bid_price","bid_amount"]
[1727598079636,0.012,65505.0,65503.0,0.076312]
[1727598080435,0.011,65505.0,65503.0,0.076312]
[1727598080641,0.012,65505.0,65503.0,0.076312]
[1727598082640,0.088311,65505.0,65503.0,0.076312]
[1727598083038,0.087311,65505.0,65503.0,0.076312]
[1727598083342,0.088311,65505.0,65503.0,0.076312]
[1727598083637,0.088311,65505.0,65503.0,0.077312]
[1727598088842,0.088311,65505.0,65503.0,0.087312]
[1727598089243,0.088311,65505.0,65504.0,0.060961]
[1727598090243,0.012,65505.0,65504.0,0.137273]
[1727598090448,0.002,65505.0,65504.0,0.137273]
[1727598090639,0.012,65505.0,65504.0,0.137273]
[1727598090839,0.012,65505.0,65504.0,0.076312]
[1727598090840,0.002,65505.0,65504.0,0.076312]
[1727598091149,0.012,65505.0,65504.0,0.1371883]
[1727598091447,0.012,65505.0,65504.0,0.076312]
[1727598092535,0.012,65505.0,65504.0,0.077312]
[1727598092536,0.002,65505.0,65504.0,0.077312]
[1727598094554,0.002,65505.0,65504.0,0.18758461]
[1727598094852,0.012,65505.0,65504.0,0.18758461]
[1727598097953,0.002,65505.0,65504.0,0.18758461]
[1727598099348,0.002,65505.0,65504.0,0.29256259]
[1727598100951,0.002,65505.0,65504.0,0.34256259]
[1727598103551,0.002,65505.0,65504.0,0.34239378]
[1727598106854,0.002,65505.0,65504.0,0.51881511]
[1727598108766,0.002,65505.0,65504.0,0.51816294]
[1727598113158,0.002,65505.0,65504.0,0.51816362]
[1727598114955,0.002,65505.0,65504.0,0.52079362]
[1727598118067,0.002,65505.0,65504.0,0.52074982]
[1727598121366,0.002,65505.0,65504.0,0.52074371]
[1727598125172,0.012,65505.0,65504.0,0.52074371]
[1727598128076,0.08831,65505.0,65504.0,0.42206433]
[1727598128576,0.08831,65505.0,65504.0,0.31765003]
[1727598129379,0.012,65505.0,65504.0,0.31765003]
[1727598129679,0.08831,65505.0,65504.0,0.37209955]
[1727598129982,0.08831,65505.0,65504.0,0.26765003]
[1727598131967,0.08371,65505.0,65504.0,0.26765003]
[1727598135573,0.08371,65505.0,65504.0,0.35923951]
[1727598138472,0.08471,65505.0,65504.0,0.35923951]
[1727598138679,0.08471,65505.0,65504.0,0.26765003]
[1727598138878,0.08471,65505.0,65504.0,0.35923951]
[1727598139283,0.08471,65505.0,65504.0,0.26765003]
[1727598139482,0.08471,65505.0,65504.0,0.0912287]
[1727598140275,0.08471,65505.0,65504.0,0.16753752]
[1727598141178,0.08471,65505.0,65504.0,0.07993882]
[1727598142479,0.08471,65505.0,65504.0,0.16760857]
[1727598142881,0.08571,65505.0,65504.0,0.16860857]
[1727598143284,0.08571,65505.0,65504.0,0.16859143]
[1727598144489,0.08571,65505.0,65504.0,0.16858926]
[1727598147179,0.08571,65505.0,65504.0,0.08092168]
[1727598148292,0.08471,65505.0,65504.0,0.07992168]
[1727598148481,0.08571,65505.0,65504.0,0.08092168]
[1727598149087,0.44651,65505.0,65504.0,0.08092168]
[1727598150992,0.44651,65505.0,65504.0,0.16859306]
[1727598153898,0.44651,65505.0,65504.0,0.16860462]
[1727598154096,0.44651,65505.0,65504.0,0.16597462]
[1727598155497,0.08571,65505.0,65504.0,0.16597462]
[1727598155799,0.44651,65505.0,65504.0,0.16597462]
[1727598156196,0.44651,65505.0,65504.0,0.08968294]
[1727598158398,0.44651,65505.0,65504.0,0.08975235]
[1727598158596,0.08571,65505.0,65504.0,0.08975235]
[1727598158793,0.44651,65505.0,65504.0,0.08975235]
[1727598163205,0.44651,65505.0,65504.0,0.08981016]
[1727598165711,0.3702,65505.0,65504.0,0.08981016]
[1727598166013,0.3628,65505.0,65504.0,0.08981016]
[1727598167106,0.3728,65505.0,65504.0,0.08981016]
[1727598167998,0.44911,65505.0,65504.0,0.08981016]
[1727598168697,0.44911,65505.0,65504.0,0.09244016]
[1727598168908,0.44911,65505.0,65504.0,0.09239818]
[1727598171405,0.08831,65505.0,65504.0,0.09239818]
[1727598172500,0.08831,65505.0,65504.0,0.09237104]
[1727598174311,0.08831,65505.0,65504.0,0.18396052]
[1727598175098,0.08831,65505.0,65504.0,0.09237104]
[1727598176104,0.08831,65505.0,65504.0,0.18396052]
[1727598176713,0.08831,65505.0,65504.0,0.09237104]
[1727598181007,0.08831,65505.0,65504.0,0.09237858]
[1727598182420,0.08831,65505.0,65504.0,0.00463]
[1727598183519,1.22262,65505.0,65504.0,0.00463]
[1727598183708,1.22262,65505.0,65504.0,0.06569203]
[1727598183906,1.22262,65505.0,65504.0,0.00463]
[1727598185613,1.22162,65505.0,65504.0,0.00463]
[1727598186917,1.58242,65505.0,65504.0,0.00463]
[1727598187913,0.52442,65505.0,65504.0,0.00463]
[1727598188625,0.076315,65501.0,65500.0,0.0036]
[1727598188817,0.152632,65500.0,65499.0,0.04574799]
[1727598189121,0.07632,65497.0,65496.0,0.0036]
[1727598189422,0.076321,65496.0,65495.0,0.04573753]
[1727598189624,0.166321,65496.0,65495.0,0.04573753]
[1727598190220,0.09,65496.0,65495.0,0.04572492]
[1727598190417,0.09,65496.0,65493.0,0.06106203]
[1727598190623,0.166321,65496.0,65495.0,0.04572571]
[1727598190826,0.165321,65496.0,65495.0,0.04572571]
[1727598192013,0.165321,65496.0,65495.0,0.04571681]
[1727598193910,0.166321,65496.0,65495.0,0.04571681]
[1727598194422,0.076322,65495.0,65494.0,0.04571681]
[1727598194617,0.176322,65495.0,65494.0,0.04571681]
[1727598194820,0.1,65495.0,65492.0,0.97050203]
[1727598195020,0.1,65495.0,65492.0,0.96946203]
[1727598195711,0.076324,65493.0,65492.0,0.96946203]
[1727598196030,0.176324,65493.0,65492.0,0.9048]
[1727598196228,0.176324,65493.0,65492.0,0.96572702]
[1727598197813,0.1,65493.0,65492.0,1.06907712]
[1727598198017,0.1,65493.0,65492.0,0.98112693]
[1727598198225,0.1,65493.0,65492.0,0.9048]
[1727598198414,0.176324,65493.0,65492.0,0.9048]
[1727598199327,0.178324,65493.0,65492.0,0.9048]
[1727598205820,0.539124,65493.0,65492.0,0.9048]
[1727598206026,0.178324,65493.0,65492.0,0.9048]
[1727598206223,0.539124,65493.0,65492.0,0.9048]
[1727598208327,0.178324,65493.0,65492.0,0.98112693]
[1727598208633,0.539124,65493.0,65492.0,0.98112693]
[1727598208823,0.539124,65493.0,65492.0,0.9048]
[1727598209021,0.178324,65493.0,65492.0,0.9048]
[1727598209340,0.178324,65493.0,65492.0,0.98112693]
[1727598209341,0.539124,65493.0,65492.0,0.98112693]
[1727598209840,0.539124,65493.0,65492.0,0.9048]
[1727598211341,0.615448,65493.0,65492.0,0.9048]
[1727598211635,0.614448,65493.0,65492.0,0.9048]
[1727598211837,0.615448,65493.0,65492.0,0.9048]
[1727598213120,0.615448,65493.0,65492.0,0.96580876]
[1727598213532,0.615448,65493.0,65492.0,0.9048]
[1727598216630,0.254648,65493.0,65492.0,0.9048]
[1727598216833,0.615448,65493.0,65492.0,0.9048]
[1727598217240,0.254648,65493.0,65492.0,0.9048]
[1727598217438,0.615448,65493.0,65492.0,0.9048]
[1727598222939,0.615448,65493.0,65492.0,0.90743]
[1727598223334,0.614448,65493.0,65492.0,0.90743]
[1727598223933,0.613448,65493.0,65492.0,0.95319206]
[1727598224127,0.614448,65493.0,65492.0,0.95319206]
[1727598227344,0.253648,65493.0,65492.0,0.95319206]
[1727598227646,0.614448,65493.0,65492.0,0.95319206]
[1727598227848,0.614448,65493.0,65492.0,0.90743]
[1727598228348,0.253648,65493.0,65492.0,0.90743]
[1727598228551,0.614448,65493.0,65492.0,0.90743]
[1727598235650,0.253648,65493.0,65492.0,0.90743]
[1727598235947,0.614448,65493.0,65492.0,0.90743]
[1727598236148,0.614448,65493.0,65492.0,0.96843876]
[1727598236745,0.253648,65493.0,65492.0,0.96843876]
[1727598237139,0.614448,65493.0,65492.0,0.96843876]
[1727598239237,0.614448,65493.0,65492.0,0.90743]
[1727598239549,0.253648,65493.0,65492.0,0.90743]
[1727598239750,0.614448,65493.0,65492.0,0.90743]
[1727598243646,0.538124,65493.0,65492.0,0.90743]
[1727598246151,0.177324,65493.0,65492.0,0.90743]
[1727598246357,0.538124,65493.0,65492.0,0.90743]
[1727598250049,0.177324,65493.0,65492.0,0.90743]
[1727598250250,0.538124,65493.0,65492.0,0.90743]
[1727598250459,0.538124,65493.0,65492.0,0.98375693]
[1727598250756,0.538124,65493.0,65492.0,0.99592062]
[1727598252549,0.4618,65493.0,65492.0,0.99592062]
[1727598253659,0.4618,65493.0,65492.0,0.99580015]
[1727598254452,0.538124,65493.0,65492.0,0.99580015]
[1727598256363,0.538124,65493.0,65492.0,1.07211209]
[1727598256767,0.538124,65493.0,65492.0,0.99580015]
[1727598258665,0.177324,65493.0,65492.0,0.99580015]
[1727598260754,0.177324,65493.0,65492.0,0.90743]
[1727598263560,0.177324,65493.0,65492.0,0.9048]
[1727598265567,0.177324,65493.0,65492.0,0.95058522]
[1727598269969,0.253648,65493.0,65492.0,0.95058522]
[1727598275664,0.253648,65493.0,65492.0,0.9048]
[1727598276470,0.253648,65493.0,65492.0,0.95057245]
[1727598276977,0.253648,65493.0,65492.0,0.9048]
[1727598278369,0.253648,65493.0,65492.0,0.90743]
[1727598279272,0.252648,65493.0,65492.0,0.90743]
[1727598287984,0.254648,65493.0,65492.0,0.90743]
[1727598289484,0.976248,65493.0,65492.0,0.90743]
[1727598293683,0.254648,65493.0,65492.0,0.90743]
[1727598294083,0.976248,65493.0,65492.0,0.90743]
[1727598296887,0.254648,65493.0,65492.0,0.90743]
[1727598297094,0.976248,65493.0,65492.0,0.90743]
[1727598298095,0.983248,65493.0,65492.0,0.90743]
[1727598298900,0.261648,65493.0,65492.0,0.90743]
[1727598299097,0.983248,65493.0,65492.0,0.90743]
[1727598299799,0.261648,65493.0,65492.0,0.90743]
[1727598300204,0.983248,65493.0,65492.0,0.90743]
[1727598300390,0.981248,65493.0,65492.0,0.90743]
[1727598300698,0.990248,65493.0,65492.0,0.90743]
[1727598305699,0.268648,65493.0,65492.0,0.90743]
[1727598305896,0.990248,65493.0,65492.0,0.90743]
[1727598306100,0.268648,65493.0,65492.0,0.90743]
[1727598306300,0.990248,65493.0,65492.0,0.90743]
[1727598310697,0.268648,65493.0,65492.0,0.90743]
[1727598310901,0.990248,65493.0,65492.0,0.90743]
[1727598313410,1.1171737,65493.0,65492.0,0.90743]
[1727598319001,1.1171737,65493.0,65492.0,0.9048]
[1727598322716,1.11709519,65493.0,65492.0,0.9048]
[1727598327517,1.11710689,65493.0,65492.0,0.9048]
[1727598332026,1.12210689,65493.0,65492.0,0.9048]
[1727598332228,1.12204947,65493.0,65492.0,0.9048]
[1727598333526,1.12204947,65493.0,65492.0,0.90743]
[1727598335818,1.05272547,65493.0,65492.0,0.90743]
[1727598336043,0.925924,65493.0,65492.0,0.90743]
[1727598336214,0.4888,65493.0,65492.0,0.90743]
[1727598336411,0.2393,65493.0,65492.0,0.96847727]
[1727598336610,0.028,65493.0,65492.0,0.96847727]
[1727598336927,0.038,65493.0,65492.0,0.90743]
[1727598341729,0.038,65493.0,65492.0,0.95315442]
[1727598342325,0.038,65493.0,65492.0,0.90743]
[1727598342630,0.038,65493.0,65492.0,0.95314636]
[1727598344331,0.038,65493.0,65492.0,0.90743]
[1727598347335,0.114324,65493.0,65492.0,0.90743]
[1727598349439,0.038,65493.0,65492.0,0.90743]
[1727598350337,0.114324,65493.0,65492.0,0.90743]
[1727598350541,0.104324,65493.0,65492.0,0.90743]
[1727598350939,0.114324,65493.0,65492.0,0.90743]
[1727598355942,0.114324,65493.0,65492.0,0.95312316]
[1727598356848,0.114324,65493.0,65492.0,0.90743]
[1727598357046,0.114324,65493.0,65492.0,0.95312316]
[1727598357252,0.114324,65493.0,65492.0,0.90743]
[1727598361949,0.114324,65493.0,65492.0,0.96844647]
[1727598363442,0.114324,65493.0,65492.0,0.90743]
[1727598364348,0.114324,65493.0,65492.0,0.96843396]
[1727598364543,0.114324,65493.0,65492.0,0.90743]
[1727598365457,0.114324,65493.0,65492.0,0.98372832]
[1727598365842,0.475124,65493.0,65492.0,0.90743]
[1727598368351,0.114324,65493.0,65492.0,0.90743]
[1727598374648,0.114324,65493.0,65492.0,0.9048]
[1727598376063,0.475124,65493.0,65492.0,0.9048]
[1727598376958,0.114324,65493.0,65492.0,0.9048]
[1727598377262,0.475124,65493.0,65492.0,0.9048]
[1727598378662,0.475124,65493.0,65492.0,0.96587883]
[1727598378860,0.475124,65493.0,65492.0,0.9048]
[1727598379763,0.114324,65493.0,65492.0,0.9048]
[1727598379967,0.475124,65493.0,65492.0,0.9048]
[1727598380963,0.114324,65493.0,65492.0,0.9048]
[1727598381154,0.475124,65493.0,65492.0,0.9048]
[1727598383562,0.114324,65493.0,65492.0,0.9048]
[1727598385864,0.475124,65493.0,65492.0,0.9048]
[1727598387554,0.3988,65493.0,65492.0,0.9048]
[1727598388663,0.3988,65493.0,65492.0,0.90743]
[1727598391660,0.475124,65493.0,65492.0,0.90743]
[1727598394362,0.114324,65493.0,65492.0,0.90743]
[1727598395771,0.038,65493.0,65492.0,0.90743]
[1727598396767,0.114324,65493.0,65492.0,0.90743]
[1727598398075,0.475124,65493.0,65492.0,0.90743]
[1727598409674,0.114324,65493.0,65492.0,0.90743]
[1727598415680,0.475124,65493.0,65492.0,0.90743]
[1727598415880,0.114324,65493.0,65492.0,0.90743]
[1727598416077,0.475124,65493.0,65492.0,0.90743]
[1727598419084,0.114324,65493.0,65492.0,0.90743]
[1727598419391,0.475124,65493.0,65492.0,0.90743]
[1727598420588,0.3988,65493.0,65492.0,0.90743]
[1727598422993,0.475124,65493.0,65492.0,0.90743]
[1727598426995,0.114324,65493.0,65492.0,0.90743]
[1727598427500,0.038,65493.0,65492.0,0.90743]
[1727598429596,0.038,65493.0,65492.0,0.9048]
[1727598431295,0.114324,65493.0,65492.0,0.9048]
[1727598443909,0.114324,65493.0,65492.0,0.90743]
[1727598448815,0.475124,65493.0,65492.0,0.90743]
[1727598449206,0.114324,65493.0,65492.0,0.90743]
[1727598449406,0.475124,65493.0,65492.0,0.90743]
[1727598449813,0.114324,65493.0,65492.0,0.90743]
[1727598450014,0.475124,65493.0,65492.0,0.90743]
[1727598450314,0.114324,65493.0,65492.0,0.90743]
[1727598450514,0.475124,65493.0,65492.0,0.90743]
[1727598450716,0.114324,65493.0,65492.0,0.90743]
[1727598451013,0.100324,65493.0,65492.0,0.90743]
[1727598451215,0.475124,65493.0,65492.0,0.90743]
[1727598452601,0.461124,65493.0,65492.0,0.90743]
[1727598452816,0.475124,65493.0,65492.0,0.90743]
[1727598463628,0.475124,65493.0,65492.0,0.9685228]
[1727598466225,0.475124,65493.0,65492.0,0.90743]
[1727598467121,0.114324,65493.0,65492.0,0.90743]
[1727598467521,0.475124,65493.0,65492.0,0.90743]
[1727598470322,0.114324,65493.0,65492.0,0.90743]
[1727598470634,0.475124,65493.0,65492.0,0.90743]
[1727598472522,0.475124,65493.0,65492.0,0.9685228]
[1727598472931,0.475124,65493.0,65492.0,0.90743]
[1727598473230,0.475124,65493.0,65492.0,0.9685228]
[1727598473426,0.475124,65493.0,65492.0,0.90743]
[1727598477732,0.114324,65493.0,65492.0,0.90743]
[1727598478440,0.475124,65493.0,65492.0,0.90743]
[1727598480039,0.114324,65493.0,65492.0,0.90743]
[1727598480242,0.475124,65493.0,65492.0,0.90743]
[1727598481042,0.114324,65493.0,65492.0,0.90743]
[1727598481245,0.475124,65493.0,65492.0,0.90743]
[1727598482531,0.114324,65493.0,65492.0,0.90743]
[1727598482831,0.475124,65493.0,65492.0,0.90743]
[1727598484038,0.475124,65493.0,65492.0,0.9048]
[1727598486846,0.114324,65493.0,65492.0,0.9048]
[1727598487142,0.475124,65493.0,65492.0,0.9048]
[1727598493544,0.114324,65493.0,65492.0,0.9048]
[1727598493948,0.475124,65493.0,65492.0,0.9048]
[1727598495643,0.475124,65493.0,65492.0,0.9658928]
[1727598495946,0.475124,65493.0,65492.0,0.9048]
[1727598495947,0.3988,65493.0,65492.0,0.9048]
[1727598496547,0.475124,65493.0,65492.0,0.9048]
[1727598497845,0.114324,65493.0,65492.0,0.9048]
[1727598499046,0.114324,65493.0,65492.0,0.90743]
[1727598516275,0.114324,65493.0,65492.0,0.96849046]
[1727598519277,0.475124,65493.0,65492.0,0.96849046]
[1727598519767,0.475124,65493.0,65492.0,0.90743]
[1727598523062,0.475124,65493.0,65492.0,0.96850862]
[1727598523878,0.475124,65493.0,65492.0,0.90743]
[1727598524074,0.114324,65493.0,65492.0,0.90743]
[1727598524276,0.475124,65493.0,65492.0,0.90743]
[1727598524579,0.475124,65493.0,65492.0,0.96851097]
[1727598525576,0.475124,65493.0,65492.0,0.90743]
[1727598525764,0.475124,65493.0,65492.0,0.96851933]
[1727598526978,0.475124,65493.0,65492.0,0.90743]
[1727598527978,0.114324,65493.0,65492.0,0.90743]
[1727598528183,0.475124,65493.0,65492.0,0.90743]
[1727598529176,0.114324,65493.0,65492.0,0.90743]
[1727598529376,0.475124,65493.0,65492.0,0.90743]
[1727598529578,0.114324,65493.0,65492.0,0.90743]
[1727598529881,0.475124,65493.0,65492.0,0.90743]
[1727598530184,0.114324,65493.0,65492.0,0.90743]
[1727598530378,0.475124,65493.0,65492.0,0.90743]
[1727598530583,0.114324,65493.0,65492.0,0.90743]
[1727598530789,0.475124,65493.0,65492.0,0.90743]
[1727598532102,0.475124,65493.0,65492.0,0.96851693]
[1727598534610,0.114324,65493.0,65492.0,0.96851693]
[1727598535003,0.475124,65493.0,65492.0,0.96851693]
[1727598537109,0.114324,65493.0,65492.0,0.96851693]
[1727598537311,0.475124,65493.0,65492.0,0.96851693]
[1727598537695,0.114324,65493.0,65492.0,0.96851693]
[1727598537910,0.475124,65493.0,65492.0,0.96851693]
[1727598538503,0.114324,65493.0,65492.0,0.96851693]
[1727598538697,0.475124,65493.0,65492.0,0.96851693]
[1727598539512,0.475124,65493.0,65492.0,0.96588693]
[1727598540010,0.114324,65493.0,65492.0,0.96588693]
[1727598540313,0.475124,65493.0,65492.0,0.96588693]
[1727598540710,0.114324,65493.0,65492.0,0.96588693]
[1727598541007,0.475124,65493.0,65492.0,0.96588693]
[1727598542708,0.475124,65493.0,65492.0,0.9048]
[1727598544304,0.475124,65493.0,65492.0,0.95061579]
[1727598544504,0.475124,65493.0,65492.0,0.95061669]
[1727598547112,0.114324,65493.0,65492.0,0.95061669]
[1727598547306,0.475124,65493.0,65492.0,0.95061669]
[1727598549013,0.475124,65493.0,65492.0,0.9048]
[1727598552817,0.475124,65493.0,65492.0,0.95060698]
[1727598553207,0.475124,65493.0,65492.0,0.9048]
[1727598553824,0.475124,65493.0,65492.0,0.90743]
[1727598554614,0.475124,65493.0,65492.0,0.95323638]
[1727598555326,0.475124,65493.0,65492.0,0.95323647]
[1727598556328,0.475124,65493.0,65492.0,0.95323629]
[1727598559723,0.475124,65493.0,65492.0,0.90743]
[1727598570729,0.114324,65493.0,65492.0,0.90743]
[1727598570930,0.475124,65493.0,65492.0,0.90743]
[1727598571123,0.114324,65493.0,65492.0,0.90743]
[1727598571319,0.475124,65493.0,65492.0,0.90743]
[1727598571822,0.114324,65493.0,65492.0,0.90743]
[1727598572020,0.551448,65493.0,65492.0,0.96852322]
[1727598572232,0.551448,65493.0,65492.0,0.90743]
[1727598576023,0.912248,65493.0,65492.0,0.90743]
[1727598593633,0.912248,65493.0,65492.0,0.9048]
[1727598600745,1.37288473,65493.0,65492.0,0.5380994]
[1727598601743,1.37288473,65493.0,65492.0,0.29363233]
[1727598602344,1.26005046,65493.0,65492.0,0.29363233]
[1727598602739,1.26005046,65493.0,65492.0,0.122921]
[1727598603637,1.14385057,65493.0,65492.0,0.122921]
[1727598604436,1.06752657,65493.0,65492.0,0.122921]
[1727598605156,0.94560655,65493.0,65492.0,0.122921]
[1727598607946,0.94560655,65493.0,65492.0,0.00263]
[1727598608146,0.9309901,65493.0,65492.0,0.00263]
[1727598611753,0.076329,65489.0,65488.0,0.00272266]
[1727598612052,0.69043708,65489.0,65488.0,0.00272266]
[1727598612553,0.076334,65486.0,65475.0,0.01492647]
[1727598612757,0.15240266,65476.0,65475.0,0.02229094]
[1727598612955,0.5328987,65476.0,65475.0,0.69863594]
[1727598613153,0.38049604,65476.0,65475.0,1.15683594]
[1727598615462,0.38049604,65476.0,65475.0,0.55683594]
[1727598615956,0.38049604,65476.0,65475.0,0.48049094]
[1727598616153,0.24333318,65476.0,65475.0,0.48049094]
[1727598616354,0.31967718,65476.0,65475.0,0.48049094]
[1727598617159,0.31967718,65476.0,65475.0,1.08049094]
[1727598617551,0.31917422,65476.0,65475.0,1.08049094]
[1727598618654,0.166344,65476.0,65475.0,1.288149]
[1727598618861,0.168344,65476.0,65475.0,1.288149]
[1727598620260,0.3608,65484.0,65482.0,0.076337]
[1727598620459,0.3708,65484.0,65483.0,0.18640021]
[1727598620651,0.3708,65484.0,65483.0,0.09474078]
[1727598622060,0.454135,65484.0,65483.0,0.0946286]
[1727598622368,0.454135,65484.0,65483.0,0.18626558]
[1727598623068,0.093335,65484.0,65483.0,0.0946286]
[1727598623660,0.101335,65484.0,65483.0,0.0946286]
[1727598624057,0.101335,65484.0,65483.0,0.18625563]
[1727598624470,0.093335,65484.0,65483.0,0.0946286]
[1727598624979,0.102335,65484.0,65483.0,0.18625019]
[1727598625478,0.095335,65484.0,65483.0,0.18625019]
[1727598625677,0.103335,65484.0,65483.0,0.18625019]
[1727598626678,0.103335,65484.0,65483.0,0.1862176]
[1727598629273,0.103335,65484.0,65483.0,0.09459601]
[1727598629778,0.103335,65484.0,65483.0,0.1862176]
[1727598630875,0.103335,65484.0,65483.0,0.09459601]
[1727598633778,0.103335,65484.0,65482.0,0.16795859]
[1727598633779,0.15434474,65484.0,65480.0,0.38277092]
[1727598633979,0.30536775,65483.0,65480.0,0.38277092]
[1727598634289,0.31536775,65483.0,65482.0,0.076337]
[1727598634886,0.39170375,65483.0,65480.0,0.38277092]
[1727598635086,0.15302921,65482.0,65480.0,0.38277092]
[1727598635386,0.15302921,65481.0,65480.0,0.38277092]
[1727598635690,0.17302921,65481.0,65480.0,0.02202604]
[1727598635889,0.17302921,65481.0,65479.0,0.076341]
[1727598636085,0.15302921,65480.0,65479.0,0.076341]
[1727598636386,0.16302921,65480.0,65479.0,0.076341]
[1727598636585,0.16302921,65480.0,65479.0,1.134501]
[1727598636786,0.30013216,65480.0,65479.0,1.134501]
[1727598637693,0.30013216,65480.0,65479.0,0.534501]
[1727598637884,0.16302921,65480.0,65479.0,0.534501]
[1727598638487,0.23936921,65480.0,65479.0,0.534501]
[1727598638886,0.23936921,65480.0,65479.0,0.544501]
[1727598639589,0.23936921,65480.0,65479.0,0.086341]
[1727598639790,0.23936921,65480.0,65479.0,0.544501]
[1727598640094,0.37647206,65480.0,65479.0,0.086341]
[1727598640293,0.23936921,65480.0,65479.0,0.086341]
[1727598640486,0.23936921,65480.0,65479.0,0.1083122]
[1727598640686,0.23692507,65480.0,65479.0,0.1083122]
[1727598641092,0.24092507,65480.0,65479.0,0.1083122]
[1727598641694,0.09034,65480.0,65479.0,0.31689724]
[1727598642488,0.09534,65480.0,65479.0,0.31689724]
[1727598646699,0.09534,65480.0,65479.0,0.31688413]
[1727598648894,0.18891504,65480.0,65479.0,0.1083122]
[1727598649099,0.11257504,65480.0,65479.0,0.1083122]
[1727598649300,0.2344493,65480.0,65479.0,0.1083122]
[1727598649900,0.11257504,65480.0,65479.0,0.1083122]
[1727598650301,0.2344493,65480.0,65479.0,0.1083122]
[1727598650894,0.11257504,65480.0,65479.0,0.1083122]
[1727598653994,0.10257504,65480.0,65479.0,0.1083122]
[1727598654901,0.10289098,65480.0,65479.0,0.1083122]
[1727598655704,0.009,65480.0,65479.0,0.31667631]
[1727598658607,0.0036,65484.0,65483.0,0.076336]
[1727598658803,0.031,65486.0,65483.0,0.21836411]
[1727598659106,0.031,65486.0,65485.0,0.3608]
[1727598659402,0.031,65486.0,65485.0,0.56916411]
[1727598659609,0.031,65486.0,65485.0,0.645042]
[1727598660814,0.107333,65486.0,65485.0,0.645042]
[1727598661201,0.107333,65486.0,65485.0,0.5319842]
[1727598661400,0.117333,65486.0,65485.0,0.5319842]
[1727598662705,0.127333,65486.0,65485.0,0.64499061]
[1727598662905,0.137333,65486.0,65485.0,0.64599061]
[1727598663419,0.137333,65486.0,65485.0,0.64594391]
[1727598663910,0.137333,65486.0,65485.0,0.53293945]
[1727598664108,0.051,65486.0,65485.0,0.53293945]
[1727598665003,0.051,65486.0,65485.0,0.64592289]
[1727598665607,0.051,65486.0,65485.0,0.54293945]
[1727598665807,0.051,65486.0,65485.0,0.65585666]
[1727598666406,0.051,65486.0,65485.0,0.54293945]
[1727598666606,0.051,65486.0,65485.0,0.65579379]
[1727598668003,0.051,65486.0,65485.0,0.6557227]
[1727598669611,0.051,65486.0,65485.0,0.54283853]
[1727598669813,0.051,65486.0,65485.0,0.65570903]
[1727598670511,0.051,65486.0,65485.0,0.54283853]
[1727598670810,0.051,65486.0,65485.0,0.448134]
[1727598670811,0.18810855,65486.0,65485.0,0.448134]
[1727598671317,0.34031761,65486.0,65485.0,0.448134]
[1727598672506,0.20320906,65486.0,65485.0,0.448134]
[1727598674317,0.34031761,65486.0,65485.0,0.448134]
[1727598674513,0.34031761,65486.0,65485.0,0.087334]
[1727598674909,0.20320906,65486.0,65485.0,0.448134]
[1727598675118,0.20320906,65486.0,65485.0,0.087334]
[1727598675310,0.20320906,65486.0,65485.0,0.448134]
[1727598675504,0.20320906,65486.0,65485.0,0.087334]
[1727598675710,0.20320906,65486.0,65485.0,0.448134]
[1727598676014,0.34031761,65486.0,65485.0,0.448134]
[1727598676903,0.33131761,65486.0,65485.0,0.447134]
[1727598677216,0.34131761,65486.0,65485.0,0.447134]
[1727598678013,0.34131761,65486.0,65485.0,0.086334]
[1727598678209,0.34131761,65486.0,65485.0,0.447134]
[1727598678518,0.32131761,65486.0,65485.0,0.447134]
[1727598678720,0.16910855,65486.0,65485.0,0.65575532]
[1727598678916,0.032,65486.0,65485.0,0.29495532]
[1727598679118,0.031,65486.0,65485.0,0.65575532]
[1727598679320,0.032,65486.0,65485.0,0.65475532]
[1727598679619,0.032,65486.0,65485.0,0.29495532]
[1727598679915,0.032,65486.0,65485.0,0.65575532]
[1727598680510,0.032,65486.0,65485.0,0.29495532]
[1727598680714,0.032,65486.0,65485.0,0.65575532]
[1727598681725,0.032,65486.0,65485.0,0.29495532]
[1727598681920,0.032,65486.0,65485.0,0.65575532]
[1727598682126,0.032,65486.0,65485.0,0.65587595]
[1727598683521,0.033,65486.0,65485.0,0.65487595]
[1727598684110,0.032,65486.0,65485.0,0.65487595]
[1727598685914,0.1253453,65486.0,65485.0,0.3808]
[1727598686114,0.18306424,65486.0,65485.0,0.61852533]
[1727598686709,0.18306424,65486.0,65485.0,0.61752533]
[1727598686916,0.18306424,65486.0,65485.0,0.61952533]
[1727598689118,0.18306424,65486.0,65485.0,0.61852533]
[1727598689519,0.08477026,65486.0,65485.0,1.07664533]
[1727598689722,0.0036,65492.0,65486.0,0.45812]
[1727598689922,0.080721,65496.0,65491.0,0.3608]
[1727598690129,0.076321,65496.0,65491.0,0.3908]
[1727598690327,0.076321,65496.0,65492.0,0.16476219]
[1727598690623,0.0036,65502.0,65496.0,0.07632]
[1727598690824,0.01,65502.0,65496.0,0.07632]
[1727598691019,0.01,65502.0,65496.0,0.08632]
[1727598691224,0.01,65502.0,65496.0,0.45632]
[1727598691426,0.076319,65498.0,65496.0,0.45632]
[1727598691623,0.07632,65497.0,65496.0,0.44632]
[1727598691929,0.08632,65497.0,65496.0,0.37]
[1727598693627,0.08632,65497.0,65494.0,0.437123]
[1727598693628,0.005,65496.0,65494.0,0.437123]
[1727598693822,0.005,65496.0,65494.0,0.076323]
[1727598694019,0.005,65496.0,65495.0,0.446322]
[1727598694336,0.07632,65497.0,65495.0,0.446322]
[1727598694537,0.08632,65497.0,65495.0,0.446322]
[1727598694726,0.09632,65497.0,65495.0,0.37]
[1727598694924,0.08632,65497.0,65496.0,0.076321]
[1727598695125,0.173215,65502.0,65498.0,0.076319]
[1727598695429,0.173215,65502.0,65500.0,0.04576853]